[Event "11th LCC Super Blitz 2019"]
[Site "London"]
[Date "2019.12.08"]
[Round "8.10"]
[White "Van Hoof, Alexander"]
[Black "Pappelis, Dimitrios"]
[Result "0-1"]
[ECO "B40"]
[WhiteElo "1968"]
[BlackElo "2160"]
[Annotator "NA"]
[PlyCount "120"]
[EventDate "2019.12.08"]
[EventType "swiss"]
[EventCountry "ENG"]
[SourceTitle "playchess.com"]
[Source "ChessBase"]
[SourceQuality "1"]
[TimeControl "180+2"]

1. e4 {[%emt 0:00:00]} c5 {[%emt 0:00:00]} 2. Nf3 {[%emt 0:00:00]} e6 {[%emt 0:00:00]} 3. c4 {[%emt 0:00:04]} Nc6 {[%emt 0:00:02]} 4. Nc3 {[%emt 0:00:02]} g5 {[%emt 0:00:01]} 5. h3 {[%emt 0:00:22]} Bg7 {[%emt 0:00:01]} 6. a3 {[%emt 0:00:05]} Nge7 {[%emt 0:00:08]} 7. d3 {[%emt 0:00:09]} h6 {[%emt 0:00:01]} 8. g4 {[%emt 0:00:08]} d6 {[%emt 0:00:06]} 9. Rb1 {[%emt 0:00:14]} Ng6 {[%emt 0:00:12]} 10. Bg2 {[%emt 0:00:17]} a6 {[%emt 0:00:01]} 11. Ne2 {[%emt 0:00:27]} O-O {[%emt 0:00:08]} 12. d4 {[%emt 0:00:10]} cxd4 {[%emt 0:00:04]} 13. Nexd4 {[%emt 0:00:14]} Nce5 {[%emt 0:00:12]} 14. b3 {[%emt 0:00:16]} Qa5+ {[%emt 0:00:32]} 15. Kf1 {[%emt 0:00:13]} Bd7 {[%emt 0:00:11]} 16. Qd2 {[%emt 0:00:13]} Qb6 {[%emt 0:00:07]} 17. Ne2 {[%emt 0:00:16]} Rad8 {[%emt 0:00:05]} 18. Ng3 {[%emt 0:00:07]} Nf4 {[%emt 0:00:05]} 19. Nh5 {[%emt 0:00:11]} Nxh5 {[%emt 0:00:07]} 20. gxh5 {[%emt 0:00:00]} Bc6 {[%emt 0:00:02]} 21. Qe2 {[%emt 0:00:07]} f5 {[%emt 0:00:09]} 22. Be3 {[%emt 0:00:01]} Qc7 {[%emt 0:00:02]} 23. exf5 {[%emt 0:00:01]} Rxf5 {[%emt 0:00:05]} 24. Nxe5 {[%emt 0:00:04]} Bxe5 {[%emt 0:00:09]} 25. Bxc6 {[%emt 0:00:02]} Qxc6 {[%emt 0:00:00]} 26. Rg1 {[%emt 0:00:01]} Rdf8 {[%emt 0:00:02]} 27. Ke1 {[%emt 0:00:02]} Qe4 {[%emt 0:00:04]} 28. Rc1 {[%emt 0:00:03]} Bd4 {[%emt 0:00:08]} 29. h4 {[%emt 0:00:01]} Bxe3 {[%emt 0:00:02]} 30. Qxe3 {[%emt 0:00:04]} Qxh4 {[%emt 0:00:05]} 31. Qxe6+ {[%emt 0:00:01]} R8f7 {[%emt 0:00:05]} 32. Qe8+ {[%emt 0:00:02]} Kg7 {[%emt 0:00:01]} 33. Qe6 {[%emt 0:00:03]} Re5+ {[%emt 0:00:01]} 34. Qxe5+ {[%emt 0:00:01]} dxe5 {[%emt 0:00:01]} 35. Rg3 {[%emt 0:00:01]} Qf4 {[%emt 0:00:03]} 36. Rc2 {[%emt 0:00:02]} Qe4+ {[%emt 0:00:04]} 37. Re2 {[%emt 0:00:01]} Qb1+ {[%emt 0:00:04]} 38. Kd2 {[%emt 0:00:01]} Rd7+ {[%emt 0:00:02]} 39. Ke3 {[%emt 0:00:02]} Qc1+ {[%emt 0:00:01]} 40. Kf3 {[%emt 0:00:01]} Rd3+ {[%emt 0:00:06]} 41. Kg2 {[%emt 0:00:01]} Rxg3+ {[%emt 0:00:03]} 42. Kxg3 {[%emt 0:00:02]} Kf6 {[%emt 0:00:02]} 43. Re3 {[%emt 0:00:01]} Qxa3 {[%emt 0:00:03]} 44. Rf3+ {[%emt 0:00:01]} Ke6 {[%emt 0:00:00]} 45. Re3 {[%emt 0:00:02]} Qb4 {[%emt 0:00:03]} 46. Kg4 {[%emt 0:00:01]} Qd2 {[%emt 0:00:03]} 47. Kg3 {[%emt 0:00:01]} Qd4 {[%emt 0:00:02]} 48. Kg2 {[%emt 0:00:02]} Qh4 {[%emt 0:00:03]} 49. Rh3 {[%emt 0:00:01]} Qe4+ {[%emt 0:00:01]} 50. Kh2 {[%emt 0:00:01]} g4 {[%emt 0:00:04]} 51. Rg3 {[%emt 0:00:02]} Qf5 {[%emt 0:00:02]} 52. Kg2 {[%emt 0:00:01]} Qxh5 {[%emt 0:00:02]} 53. b4 {[%emt 0:00:04]} Qf5 {[%emt 0:00:02]} 54. b5 {[%emt 0:00:02]} axb5 {[%emt 0:00:01]} 55. cxb5 {[%emt 0:00:00]} h5 {[%emt 0:00:01]} 56. b6 {[%emt 0:00:02]} h4 {[%emt 0:00:01]} 57. Rc3 {[%emt 0:00:02]} Qe4+ {[%emt 0:00:03]} 58. Kh2 {[%emt 0:00:03]} Qe1 {[%emt 0:00:05]} 59. Rc2 {[%emt 0:00:03]} Qf1 {[%emt 0:00:04]} 60. f4 {[%emt 0:00:04]} g3# {[%emt 0:00:02]} 0-1

[Event "11th LCC Super Blitz 2019"]
[Site "London"]
[Date "2019.12.08"]
[Round "8.10"]
[White "Tombolis, Christopher"]
[Black "Ozturan, Cem"]
[Result "1-0"]
[ECO "E46"]
[WhiteElo "1655"]
[BlackElo "1853"]
[Annotator "NA"]
[PlyCount "31"]
[EventDate "2019.12.08"]
[EventType "swiss"]
[EventCountry "ENG"]
[SourceTitle "playchess.com"]
[Source "ChessBase"]
[SourceQuality "1"]
[TimeControl "180+2"]

1. d4 {[%emt 0:00:00]} Nf6 {[%emt 0:00:00]} 2. c4 {[%emt 0:00:00]} e6 {[%emt 0:00:00]} 3. Nc3 {[%emt 0:00:02]} Bb4 {[%emt 0:00:01]} 4. e3 {[%emt 0:00:01]} O-O {[%emt 0:00:02]} 5. Nge2 {[%emt 0:00:00]} d5 {[%emt 0:00:02]} 6. a3 {[%emt 0:00:01]} Be7 {[%emt 0:00:02]} 7. cxd5 {[%emt 0:00:02]} exd5 {[%emt 0:00:01]} 8. Nf4 {[%emt 0:00:03]} c6 {[%emt 0:00:02]} 9. Bd3 {[%emt 0:00:02]} Na6 {[%emt 0:00:01]} 10. Bxa6 {[%emt 0:00:04]} bxa6 {[%emt 0:00:01]} 11. O-O {[%emt 0:00:02]} Bd6 {[%emt 0:00:06]} 12. Nd3 {[%emt 0:00:01]} Bf5 {[%emt 0:00:06]} 13. f4 {[%emt 0:00:11]} Re8 {[%emt 0:00:08]} 14. Na4 {[%emt 0:00:01]} Rb8 {[%emt 0:00:15]} 15. Ne5 {[%emt 0:00:17]} Bxe5 {[%emt 0:00:30]} 16. fxe5 {[%emt 0:00:05]} 1-0

[Event "11th LCC Super Blitz 2019"]
[Site "London"]
[Date "2019.12.08"]
[Round "8.11"]
[White "Patel, Rishi"]
[Black "Yeo, Klaus Lucas"]
[Result "0-1"]
[ECO "B52"]
[WhiteElo "1899"]
[BlackElo "1176"]
[Annotator "NA"]
[PlyCount "109"]
[EventDate "2019.12.08"]
[EventType "swiss"]
[EventCountry "ENG"]
[SourceTitle "playchess.com"]
[Source "ChessBase"]
[SourceQuality "1"]
[TimeControl "180+2"]

1. e4 {[%emt 0:00:00]} c5 {[%emt 0:00:00]} 2. Nf3 {[%emt 0:00:01]} d6 {[%emt 0:00:00]} 3. Bb5+ {[%emt 0:00:01]} Bd7 {[%emt 0:00:02]} 4. Bxd7+ {[%emt 0:00:01]} Nxd7 {[%emt 0:00:01]} 5. O-O {[%emt 0:00:03]} Ngf6 {[%emt 0:00:02]} 6. Re1 {[%emt 0:00:01]} e6 {[%emt 0:00:01]} 7. c3 {[%emt 0:00:01]} Be7 {[%emt 0:00:04]} 8. d4 {[%emt 0:00:01]} cxd4 {[%emt 0:00:02]} 9. cxd4 {[%emt 0:00:01]} h6 {[%emt 0:00:04]} 10. Be3 {[%emt 0:00:01]} a6 {[%emt 0:00:02]} 11. h3 {[%emt 0:00:02]} O-O {[%emt 0:00:03]} 12. Nc3 {[%emt 0:00:01]} Rc8 {[%emt 0:00:02]} 13. Rc1 {[%emt 0:00:01]} e5 {[%emt 0:00:08]} 14. Qb3 {[%emt 0:00:19]} exd4 {[%emt 0:00:20]} 15. Bxd4 {[%emt 0:00:01]} b5 {[%emt 0:00:08]} 16. Qd1 {[%emt 0:00:19]} Nc5 {[%emt 0:00:04]} 17. b4 {[%emt 0:00:03]} Ne6 {[%emt 0:00:04]} 18. Be3 {[%emt 0:00:16]} Qd7 {[%emt 0:00:15]} 19. Nd5 {[%emt 0:00:00]} Nxe4 {[%emt 0:00:15]} 20. Nb6 {[%emt 0:00:32]} Rxc1 {[%emt 0:00:10]} 21. Bxc1 {[%emt 0:00:02]} Qb7 {[%emt 0:00:05]} 22. Nd5 {[%emt 0:00:11]} Nf6 {[%emt 0:00:03]} 23. Nxf6+ {[%emt 0:00:11]} Bxf6 {[%emt 0:00:04]} 24. Qxd6 {[%emt 0:00:04]} Rd8 {[%emt 0:00:04]} 25. Qg3 {[%emt 0:00:17]} Kh7 {[%emt 0:00:04]} 26. a3 {[%emt 0:00:10]} Rd7 {[%emt 0:00:11]} 27. Be3 {[%emt 0:00:04]} Bb2 {[%emt 0:00:15]} 28. Bc1 {[%emt 0:00:22]} Bxc1 {[%emt 0:00:02]} 29. Rxc1 {[%emt 0:00:01]} Qd5 {[%emt 0:00:10]} 30. Ne5 {[%emt 0:00:17]} Re7 {[%emt 0:00:17]} 31. Nc6 {[%emt 0:00:04]} Rc7 {[%emt 0:00:03]} 32. Qc3 {[%emt 0:00:20]} Nd8 {[%emt 0:00:01]} 33. Qc2+ {[%emt 0:00:05]} g6 {[%emt 0:00:04]} 34. Rd1 {[%emt 0:00:03]} Qg5 {[%emt 0:00:10]} 35. Rxd8 {[%emt 0:00:04]} Qxd8 {[%emt 0:00:04]} 36. Qe4 {[%emt 0:00:06]} Qd7 {[%emt 0:00:05]} 37. Ne5 {[%emt 0:00:05]} Qe7 {[%emt 0:00:02]} 38. Qf4 {[%emt 0:00:01]} Kg7 {[%emt 0:00:04]} 39. Nd3 {[%emt 0:00:01]} Rd7 {[%emt 0:00:02]} 40. Qf3 {[%emt 0:00:04]} Qd6 {[%emt 0:00:03]} 41. Nf4 {[%emt 0:00:01]} Qd1+ {[%emt 0:00:05]} 42. Qxd1 {[%emt 0:00:01]} Rxd1+ {[%emt 0:00:01]} 43. Kh2 {[%emt 0:00:01]} Ra1 {[%emt 0:00:01]} 44. Nd5 {[%emt 0:00:02]} Rxa3 {[%emt 0:00:02]} 45. Nc7 {[%emt 0:00:01]} Ra4 {[%emt 0:00:04]} 46. Kg3 {[%emt 0:00:03]} Rxb4 {[%emt 0:00:01]} 47. Nxa6 {[%emt 0:00:01]} Ra4 {[%emt 0:00:01]} 48. Nc5 {[%emt 0:00:01]} Rc4 {[%emt 0:00:02]} 49. Nd3 {[%emt 0:00:01]} b4 {[%emt 0:00:01]} 50. Kf3 {[%emt 0:00:02]} b3 {[%emt 0:00:01]} 51. Ke3 {[%emt 0:00:04]} Rc8 {[%emt 0:00:03]} 52. Nb2 {[%emt 0:00:01]} Rc2 {[%emt 0:00:03]} 53. Nd3 {[%emt 0:00:03]} b2 {[%emt 0:00:02]} 54. Nxb2 {[%emt 0:00:01]} Rxb2 {[%emt 0:00:01]} 55. Kd4 {[%emt 0:00:09]} 0-1

[Event "11th LCC Super Blitz 2019"]
[Site "London"]
[Date "2019.12.08"]
[Round "8.11"]
[White "Zhao, Haolin"]
[Black "Rahman, Asad"]
[Result "0-1"]
[ECO "B23"]
[WhiteElo "1725"]
[BlackElo "1923"]
[Annotator "NA"]
[PlyCount "138"]
[EventDate "2019.12.08"]
[EventType "swiss"]
[EventCountry "ENG"]
[SourceTitle "playchess.com"]
[Source "ChessBase"]
[SourceQuality "1"]
[TimeControl "180+2"]

1. e4 {[%emt 0:00:00]} c5 {[%emt 0:00:00]} 2. Nc3 {[%emt 0:00:01]} Nc6 {[%emt 0:00:00]} 3. f4 {[%emt 0:00:01]} d6 {[%emt 0:00:01]} 4. Nf3 {[%emt 0:00:02]} Nf6 {[%emt 0:00:02]} 5. Bb5 {[%emt 0:00:01]} Bd7 {[%emt 0:00:01]} 6. O-O {[%emt 0:00:02]} g6 {[%emt 0:00:09]} 7. d3 {[%emt 0:00:02]} Bg7 {[%emt 0:00:00]} 8. Qe1 {[%emt 0:00:01]} O-O {[%emt 0:00:02]} 9. Bxc6 {[%emt 0:00:04]} Bxc6 {[%emt 0:00:03]} 10. Qh4 {[%emt 0:00:02]} d5 {[%emt 0:00:09]} 11. f5 {[%emt 0:00:08]} dxe4 {[%emt 0:00:14]} 12. dxe4 {[%emt 0:00:02]} b5 {[%emt 0:00:11]} 13. Bh6 {[%emt 0:00:04]} b4 {[%emt 0:00:03]} 14. Ne2 {[%emt 0:00:01]} Bxe4 {[%emt 0:00:24]} 15. Bxg7 {[%emt 0:00:08]} Kxg7 {[%emt 0:00:01]} 16. Ng5 {[%emt 0:00:06]} Bxf5 {[%emt 0:00:11]} 17. g4 {[%emt 0:00:02]} h6 {[%emt 0:00:15]} 18. gxf5 {[%emt 0:00:13]} hxg5 {[%emt 0:00:02]} 19. Qxg5 {[%emt 0:00:01]} Rh8 {[%emt 0:00:29]} 20. fxg6 {[%emt 0:00:06]} fxg6 {[%emt 0:00:01]} 21. Rad1 {[%emt 0:00:02]} Qc7 {[%emt 0:00:12]} 22. Nf4 {[%emt 0:00:03]} Qb6 {[%emt 0:00:15]} 23. Nxg6 {[%emt 0:00:04]} c4+ {[%emt 0:00:14]} 24. Rf2 {[%emt 0:00:14]} Qxf2+ {[%emt 0:00:05]} 25. Kxf2 {[%emt 0:00:08]} Ne4+ {[%emt 0:00:00]} 26. Kg2 {[%emt 0:00:04]} Nxg5 {[%emt 0:00:00]} 27. Nxh8 {[%emt 0:00:02]} Rxh8 {[%emt 0:00:00]} 28. Rd5 {[%emt 0:00:05]} Kf6 {[%emt 0:00:00]} 29. Rc5 {[%emt 0:00:08]} c3 {[%emt 0:00:00]} 30. bxc3 {[%emt 0:00:02]} bxc3 {[%emt 0:00:00]} 31. Rxc3 {[%emt 0:00:01]} e5 {[%emt 0:00:00]} 32. Ra3 {[%emt 0:00:03]} Rh7 {[%emt 0:00:00]} 33. Kg3 {[%emt 0:00:05]} Kf5 {[%emt 0:00:00]} 34. h4 {[%emt 0:00:06]} Ne4+ {[%emt 0:00:00]} 35. Kf3 {[%emt 0:00:03]} Rxh4 {[%emt 0:00:00]} 36. Rxa7 {[%emt 0:00:01]} Rh3+ {[%emt 0:00:00]} 37. Ke2 {[%emt 0:00:02]} Rc3 {[%emt 0:00:00]} 38. Rf7+ {[%emt 0:00:03]} Ke6 {[%emt 0:00:00]} 39. Ra7 {[%emt 0:00:09]} Kd5 {[%emt 0:00:00]} 40. Ra5+ {[%emt 0:00:05]} Kd4 {[%emt 0:00:00]} 41. Ra4+ {[%emt 0:00:01]} Kd5 {[%emt 0:00:00]} 42. Ra5+ {[%emt 0:00:06]} Nc5 {[%emt 0:00:00]} 43. Kd2 {[%emt 0:00:02]} Rc4 {[%emt 0:00:00]} 44. Ra3 {[%emt 0:00:07]} Rh4 {[%emt 0:00:00]} 45. Kd1 {[%emt 0:00:09]} e4 {[%emt 0:00:00]} 46. Ke2 {[%emt 0:00:03]} Kd4 {[%emt 0:00:01]} 47. c3+ {[%emt 0:00:03]} Kd5 {[%emt 0:00:05]} 48. Ra5 {[%emt 0:00:03]} Rh2+ {[%emt 0:00:02]} 49. Ke3 {[%emt 0:00:03]} Rh3+ {[%emt 0:00:01]} 50. Ke2 {[%emt 0:00:01]} Rxc3 {[%emt 0:00:01]} 51. Ra8 {[%emt 0:00:03]} Rh3 {[%emt 0:00:06]} 52. Rd8+ {[%emt 0:00:01]} Kc4 {[%emt 0:00:01]} 53. Rd6 {[%emt 0:00:08]} Rh2+ {[%emt 0:00:03]} 54. Ke3 {[%emt 0:00:02]} Rxa2 {[%emt 0:00:02]} 55. Rd4+ {[%emt 0:00:04]} Kb5 {[%emt 0:00:01]} 56. Rd8 {[%emt 0:00:04]} Ra3+ {[%emt 0:00:01]} 57. Ke2 {[%emt 0:00:02]} Kc4 {[%emt 0:00:01]} 58. Rc8 {[%emt 0:00:02]} Kd4 {[%emt 0:00:06]} 59. Rd8+ {[%emt 0:00:01]} Ke5 {[%emt 0:00:01]} 60. Re8+ {[%emt 0:00:02]} Ne6 {[%emt 0:00:00]} 61. Rb8 {[%emt 0:00:06]} Nf4+ {[%emt 0:00:05]} 62. Kf2 {[%emt 0:00:02]} Rf3+ {[%emt 0:00:02]} 63. Ke1 {[%emt 0:00:02]} e3 {[%emt 0:00:03]} 64. Rb5+ {[%emt 0:00:04]} Nd5 {[%emt 0:00:03]} 65. Ke2 {[%emt 0:00:02]} Rf2+ {[%emt 0:00:00]} 66. Ke1 {[%emt 0:00:03]} Rh2 {[%emt 0:00:02]} 67. Ra5 {[%emt 0:00:03]} Ke4 {[%emt 0:00:01]} 68. Ra4+ {[%emt 0:00:01]} Kf3 {[%emt 0:00:03]} 69. Kd1 {[%emt 0:00:03]} Nc3+ {[%emt 0:00:14] Kc2} 0-1

[Event "11th LCC Super Blitz 2019"]
[Site "London"]
[Date "2019.12.08"]
[Round "8.12"]
[White "Bergner, Matthias"]
[Black "Thatte, Nandinee"]
[Result "1-0"]
[ECO "A03"]
[WhiteElo "1632"]
[BlackElo "1270"]
[Annotator "NA"]
[PlyCount "73"]
[EventDate "2019.12.08"]
[EventType "swiss"]
[EventCountry "ENG"]
[SourceTitle "playchess.com"]
[Source "ChessBase"]
[SourceQuality "1"]
[TimeControl "180+2"]

1. d4 {[%emt 0:00:00]} Nf6 {[%emt 0:00:00]} 2. e3 {[%emt 0:00:01]} g6 {[%emt 0:00:01]} 3. f4 {[%emt 0:00:01]} Bg7 {[%emt 0:00:02]} 4. Nf3 {[%emt 0:00:02]} O-O {[%emt 0:00:06]} 5. Bd3 {[%emt 0:00:02]} d5 {[%emt 0:00:01]} 6. O-O {[%emt 0:00:03]} c5 {[%emt 0:00:02]} 7. c3 {[%emt 0:00:01]} Nc6 {[%emt 0:00:01]} 8. Nbd2 {[%emt 0:00:02]} Bd7 {[%emt 0:00:20]} 9. Ne5 {[%emt 0:00:03]} Nxe5 {[%emt 0:00:34]} 10. fxe5 {[%emt 0:00:03]} Ng4 {[%emt 0:00:05]} 11. Nf3 {[%emt 0:00:15]} Nh6 {[%emt 0:00:04]} 12. Bd2 {[%emt 0:00:06]} Nf5 {[%emt 0:00:03]} 13. Qe2 {[%emt 0:00:19]} Qb6 {[%emt 0:00:07]} 14. b3 {[%emt 0:00:10]} Rac8 {[%emt 0:00:27]} 15. Rac1 {[%emt 0:00:03]} a6 {[%emt 0:00:09]} 16. g3 {[%emt 0:00:15]} Bb5 {[%emt 0:00:16]} 17. Bxb5 {[%emt 0:00:04]} Qxb5 {[%emt 0:00:07]} 18. Qxb5 {[%emt 0:00:02]} axb5 {[%emt 0:00:02]} 19. g4 {[%emt 0:00:16]} Nh6 {[%emt 0:00:05]} 20. h3 {[%emt 0:00:02]} f5 {[%emt 0:00:12]} 21. exf6 {[%emt 0:00:11]} Bxf6 {[%emt 0:00:08]} 22. Kg2 {[%emt 0:00:03]} Bg7 {[%emt 0:00:06]} 23. Ng5 {[%emt 0:00:22]} cxd4 {[%emt 0:00:22]} 24. cxd4 {[%emt 0:00:28]} Bf6 {[%emt 0:00:05]} 25. Ne6 {[%emt 0:00:12]} Rfe8 {[%emt 0:00:07]} 26. Nc5 {[%emt 0:00:03]} Rc7 {[%emt 0:00:05]} 27. Ba5 {[%emt 0:00:12]} Rc6 {[%emt 0:00:06]} 28. Bd2 {[%emt 0:00:13]} b6 {[%emt 0:00:05]} 29. Nd3 {[%emt 0:00:05]} Rec8 {[%emt 0:00:03]} 30. Nb4 {[%emt 0:00:05]} Rxc1 {[%emt 0:00:02]} 31. Rxc1 {[%emt 0:00:01]} Rxc1 {[%emt 0:00:02]} 32. Bxc1 {[%emt 0:00:01]} Nf7 {[%emt 0:00:02]} 33. Kf3 {[%emt 0:00:02]} Nd6 {[%emt 0:00:01]} 34. Nxd5 {[%emt 0:00:02]} Kf7 {[%emt 0:00:04]} 35. Nxb6 {[%emt 0:00:02]} Ke6 {[%emt 0:00:04]} 36. Ke2 {[%emt 0:00:03]} Bg7 {[%emt 0:00:03]} 37. Kd3 {[%emt 0:00:02] Kd5 Ke4+} 1-0

[Event "11th LCC Super Blitz 2019"]
[Site "London"]
[Date "2019.12.08"]
[Round "8.12"]
[White "Jackson, Julius"]
[Black "Vikas Narayan S P"]
[Result "0-1"]
[ECO "C56"]
[WhiteElo "1584"]
[BlackElo "1026"]
[Annotator "NA"]
[PlyCount "82"]
[EventDate "2019.12.08"]
[EventType "swiss"]
[EventCountry "ENG"]
[SourceTitle "playchess.com"]
[Source "ChessBase"]
[SourceQuality "1"]
[TimeControl "180+2"]

1. e4 {[%emt 0:00:00]} e5 {[%emt 0:00:00]} 2. Nf3 {[%emt 0:00:00]} Nc6 {[%emt 0:00:00]} 3. d4 {[%emt 0:00:00]} exd4 {[%emt 0:00:02]} 4. Bc4 {[%emt 0:00:01]} Nf6 {[%emt 0:00:02]} 5. e5 {[%emt 0:00:01]} Ne4 {[%emt 0:00:08]} 6. Bd5 {[%emt 0:00:15]} Nc5 {[%emt 0:00:11]} 7. Bxc6 {[%emt 0:00:09]} dxc6 {[%emt 0:00:05]} 8. Nxd4 {[%emt 0:00:03]} Be7 {[%emt 0:00:08]} 9. O-O {[%emt 0:00:10]} O-O {[%emt 0:00:05]} 10. Nc3 {[%emt 0:00:01]} Ne6 {[%emt 0:00:07]} 11. Be3 {[%emt 0:00:21]} Bb4 {[%emt 0:00:04]} 12. Qd3 {[%emt 0:00:23]} Re8 {[%emt 0:00:05]} 13. Rfe1 {[%emt 0:00:09]} Nxd4 {[%emt 0:00:11]} 14. Bxd4 {[%emt 0:00:02]} c5 {[%emt 0:00:01]} 15. Be3 {[%emt 0:00:21]} Be6 {[%emt 0:00:07]} 16. Qe4 {[%emt 0:00:11]} Qe7 {[%emt 0:00:10]} 17. Rad1 {[%emt 0:00:09]} c6 {[%emt 0:00:07]} 18. a3 {[%emt 0:00:07]} Bd5 {[%emt 0:00:05]} 19. Qg4 {[%emt 0:00:24]} Bxc3 {[%emt 0:00:09]} 20. bxc3 {[%emt 0:00:04]} Qxe5 {[%emt 0:00:04]} 21. Bd2 {[%emt 0:00:03]} Qf6 {[%emt 0:00:05]} 22. Qg3 {[%emt 0:00:18]} Re6 {[%emt 0:00:10]} 23. Rb1 {[%emt 0:00:06]} b6 {[%emt 0:00:04]} 24. a4 {[%emt 0:00:08]} Rae8 {[%emt 0:00:03]} 25. h3 {[%emt 0:00:08]} Qg6 {[%emt 0:00:05]} 26. Qxg6 {[%emt 0:00:11]} fxg6 {[%emt 0:00:03]} 27. Rxe6 {[%emt 0:00:00]} Rxe6 {[%emt 0:00:04]} 28. Re1 {[%emt 0:00:00]} Rxe1+ {[%emt 0:00:04]} 29. Bxe1 {[%emt 0:00:00]} Kf7 {[%emt 0:00:02]} 30. Bd2 {[%emt 0:00:01]} Ke6 {[%emt 0:00:03]} 31. Kf1 {[%emt 0:00:01]} h5 {[%emt 0:00:03]} 32. g3 {[%emt 0:00:01]} Ba2 {[%emt 0:00:05]} 33. Ke2 {[%emt 0:00:03]} Kd5 {[%emt 0:00:07]} 34. Kd3 {[%emt 0:00:06]} b5 {[%emt 0:00:02]} 35. axb5 {[%emt 0:00:03]} cxb5 {[%emt 0:00:02]} 36. Bf4 {[%emt 0:00:05]} Bc4+ {[%emt 0:00:02]} 37. Kd2 {[%emt 0:00:01]} a5 {[%emt 0:00:01]} 38. Kc1 {[%emt 0:00:04]} a4 {[%emt 0:00:02]} 39. Kb2 {[%emt 0:00:02]} Ke4 {[%emt 0:00:02]} 40. Be3 {[%emt 0:00:03]} Kd5 {[%emt 0:00:03]} 41. Bf4 {[%emt 0:00:01]} b4 {[%emt 0:00:16]} 0-1

[Event "11th LCC Super Blitz 2019"]
[Site "London"]
[Date "2019.12.08"]
[Round "8.12"]
[White "Vaidya, Raghav"]
[Black "Davis, Holden"]
[Result "0-1"]
[ECO "A96"]
[WhiteElo "1467"]
[BlackElo "1769"]
[Annotator "NA"]
[PlyCount "70"]
[EventDate "2019.12.08"]
[EventType "swiss"]
[EventCountry "ENG"]
[SourceTitle "playchess.com"]
[Source "ChessBase"]
[SourceQuality "1"]
[TimeControl "180+2"]

1. c4 {[%emt 0:00:00]} e6 {[%emt 0:00:00]} 2. Nc3 {[%emt 0:00:01]} f5 {[%emt 0:00:00]} 3. g3 {[%emt 0:00:02]} Nf6 {[%emt 0:00:01]} 4. Bg2 {[%emt 0:00:01]} Be7 {[%emt 0:00:01]} 5. Nf3 {[%emt 0:00:02]} O-O {[%emt 0:00:01]} 6. O-O {[%emt 0:00:01]} d6 {[%emt 0:00:01]} 7. d4 {[%emt 0:00:07]} a5 {[%emt 0:00:01]} 8. a3 {[%emt 0:00:02]} Qe8 {[%emt 0:00:02]} 9. Re1 {[%emt 0:00:08]} Ne4 {[%emt 0:00:01]} 10. Nxe4 {[%emt 0:00:02]} fxe4 {[%emt 0:00:01]} 11. Nd2 {[%emt 0:00:04]} d5 {[%emt 0:00:07]} 12. cxd5 {[%emt 0:00:02]} exd5 {[%emt 0:00:01]} 13. Nb3 {[%emt 0:00:02]} a4 {[%emt 0:00:06]} 14. Nd2 {[%emt 0:00:05]} Nc6 {[%emt 0:00:05]} 15. Nb1 {[%emt 0:00:02]} Bf6 {[%emt 0:00:08]} 16. e3 {[%emt 0:00:08]} Qg6 {[%emt 0:00:02]} 17. Nc3 {[%emt 0:00:03]} Be6 {[%emt 0:00:05]} 18. Nxa4 {[%emt 0:00:05]} Bg4 {[%emt 0:00:09]} 19. Qc2 {[%emt 0:00:07]} Be7 {[%emt 0:00:11]} 20. h3 {[%emt 0:00:06]} Bf3 {[%emt 0:00:01]} 21. Bxf3 {[%emt 0:00:07]} Rxf3 {[%emt 0:00:01]} 22. Nc3 {[%emt 0:00:11]} Qe6 {[%emt 0:00:06]} 23. Kg2 {[%emt 0:00:05]} Raf8 {[%emt 0:00:01]} 24. Re2 {[%emt 0:00:08]} Na5 {[%emt 0:00:06]} 25. Bd2 {[%emt 0:00:07]} Nc4 {[%emt 0:00:01]} 26. Rh1 {[%emt 0:00:12]} c6 {[%emt 0:00:01]} 27. Bc1 {[%emt 0:00:21]} Qf5 {[%emt 0:00:04]} 28. a4 {[%emt 0:00:13]} h5 {[%emt 0:00:12]} 29. b3 {[%emt 0:00:02]} Nb6 {[%emt 0:00:01]} 30. Qb2 {[%emt 0:00:25]} Nd7 {[%emt 0:00:01]} 31. Qc2 {[%emt 0:00:04]} Bd6 {[%emt 0:00:06]} 32. Qb2 {[%emt 0:00:08]} h4 {[%emt 0:00:12]} 33. g4 {[%emt 0:00:05]} Rg3+ 34. fxg3 {[%emt 0:00:28]} Qf3+ {[%emt 0:00:24]} 35. Kg1 {[%emt 0:00:04]} Qf1+ {[%emt 0:00:08]} 0-1

[Event "11th LCC Super Blitz 2019"]
[Site "London"]
[Date "2019.12.08"]
[Round "8.13"]
[White "Pham, Catherine"]
[Black "Caceres De La Calle, Eduardo"]
[Result "0-1"]
[ECO "C88"]
[WhiteElo "1280"]
[BlackElo "1575"]
[Annotator "NA"]
[PlyCount "66"]
[EventDate "2019.12.08"]
[EventType "swiss"]
[EventCountry "ENG"]
[SourceTitle "playchess.com"]
[Source "ChessBase"]
[SourceQuality "1"]
[TimeControl "180+2"]

1. e4 {[%emt 0:00:00]} e5 {[%emt 0:00:00]} 2. Nf3 {[%emt 0:00:02]} Nc6 {[%emt 0:00:00]} 3. Bb5 {[%emt 0:00:01]} a6 {[%emt 0:00:01]} 4. Ba4 {[%emt 0:00:03]} Nf6 {[%emt 0:00:01]} 5. O-O {[%emt 0:00:04]} Be7 {[%emt 0:00:01]} 6. Re1 {[%emt 0:00:02]} d6 {[%emt 0:00:01]} 7. d3 {[%emt 0:00:03]} b5 {[%emt 0:00:01]} 8. Bb3 {[%emt 0:00:01]} Na5 {[%emt 0:00:01]} 9. Be3 {[%emt 0:00:12]} O-O {[%emt 0:00:05]} 10. Qd2 {[%emt 0:00:08]} Nxb3 {[%emt 0:00:08]} 11. axb3 {[%emt 0:00:02]} c5 {[%emt 0:00:01]} 12. b4 {[%emt 0:00:21]} c4 {[%emt 0:00:07]} 13. dxc4 {[%emt 0:00:02]} bxc4 {[%emt 0:00:08]} 14. c3 {[%emt 0:00:02]} Nxe4 {[%emt 0:00:05]} 15. Qd3 {[%emt 0:00:06]} cxd3 {[%emt 0:00:03]} 16. Rd1 {[%emt 0:00:05]} f5 {[%emt 0:00:12]} 17. Rxd3 {[%emt 0:00:06]} f4 {[%emt 0:00:03]} 18. Bc1 {[%emt 0:00:06]} Bg4 {[%emt 0:00:08]} 19. Nbd2 {[%emt 0:00:10]} Nxd2 {[%emt 0:00:08]} 20. Nxd2 {[%emt 0:00:05]} d5 {[%emt 0:00:05]} 21. f3 {[%emt 0:00:06]} Qb6+ {[%emt 0:00:05]} 22. Kh1 {[%emt 0:00:04]} Rad8 {[%emt 0:00:07]} 23. fxg4 {[%emt 0:00:08]} e4 {[%emt 0:00:06]} 24. Rd4 {[%emt 0:00:06]} Bf6 {[%emt 0:00:06]} 25. Nb3 {[%emt 0:00:45]} Bxd4 {[%emt 0:00:05]} 26. Nxd4 {[%emt 0:00:02]} f3 {[%emt 0:00:11]} 27. gxf3 {[%emt 0:00:06]} Rxf3 {[%emt 0:00:03]} 28. Kg2 {[%emt 0:00:10]} Rdf8 {[%emt 0:00:19]} 29. Bg5 {[%emt 0:00:25]} Rf2+ {[%emt 0:00:09]} 30. Kg1 {[%emt 0:00:01]} Rxb2 {[%emt 0:00:12]} 31. Rc1 {[%emt 0:00:05]} Rff2 {[%emt 0:00:13]} 32. h4 {[%emt 0:00:07]} Qd6 {[%emt 0:00:10]} 33. Be3 {[%emt 0:00:14]} Qh2# {[%emt 0:00:05]} 0-1